bitfinex/quotes_BTCUSD_20251104
["timestamp","ask_amount","ask_price","bid_price","bid_amount"]
[1762236023760,0.35809074,104450.0,104440.0,0.07375293]
[1762236023973,0.15743826,104450.0,104440.0,0.07375293]
[1762236024183,0.01709074,104450.0,104440.0,0.07375293]
[1762236024396,0.01709074,104450.0,104440.0,0.15505293]
[1762236024603,0.01709074,104450.0,104440.0,0.07375293]
[1762236025029,0.04588966,104450.0,104440.0,0.07375293]
[1762236025281,3.04588966,104450.0,104440.0,0.16071293]
[1762236025703,3.04588966,104450.0,104440.0,0.07375293]
[1762236025924,3.04588966,104450.0,104440.0,0.15896293]
[1762236026153,3.38588966,104450.0,104440.0,0.07375293]
[1762236026370,3.42383966,104450.0,104440.0,0.00760293]
[1762236027291,3.38588966,104450.0,104440.0,0.15074293]
[1762236027721,0.03211381,104450.0,104440.0,0.16989268]
[1762236027930,0.03211381,104450.0,104440.0,0.15074293]
[1762236028371,0.03211381,104450.0,104440.0,0.16989268]
[1762236028585,0.01502307,104450.0,104440.0,0.15971755]
[1762236028799,0.01502307,104450.0,104440.0,0.15371755]
[1762236029264,0.01602307,104450.0,104440.0,0.15971755]
[1762236029661,0.01502307,104450.0,104440.0,0.15671755]
[1762236030109,0.01602307,104450.0,104440.0,0.16371755]
[1762236030320,0.01602307,104450.0,104440.0,0.16071755]
[1762236030749,0.01602307,104450.0,104440.0,0.16471755]
[1762236031403,0.01602307,104450.0,104440.0,0.1838673]
[1762236031622,0.34,104470.0,104440.0,0.1838673]
[1762236031842,0.01714591,104470.0,104460.0,0.09428]
[1762236032075,0.01714591,104470.0,104460.0,0.09451921]
[1762236032287,0.02878729,104490.0,104460.0,0.18775921]
[1762236032499,3.0,104480.0,104460.0,0.12305921]
[1762236032715,0.34,104470.0,104460.0,0.02981921]
[1762236032927,0.341,104470.0,104460.0,0.09451921]
[1762236033389,0.001,104470.0,104460.0,0.18757921]
[1762236034252,0.34,104480.0,104460.0,0.18757921]
[1762236034521,0.01712772,104480.0,104470.0,0.09425]
[1762236034747,0.01712772,104480.0,104470.0,0.17809425]
[1762236034962,0.01712772,104480.0,104470.0,0.22201425]
[1762236035143,0.34,104480.0,104470.0,0.20287]
[1762236035384,0.34,104480.0,104470.0,0.20187]
[1762236036278,0.37886638,104510.0,104470.0,0.20187]
[1762236036491,0.34,104490.0,104470.0,0.10862]
[1762236036705,0.35711546,104490.0,104470.0,0.04392]
[1762236036919,0.35711546,104490.0,104480.0,0.0647]
[1762236037403,0.01711546,104490.0,104480.0,0.15573]
[1762236038268,0.01725536,104490.0,104480.0,0.15573]
[1762236038492,0.01825536,104490.0,104480.0,0.16273]
[1762236038702,0.0332808,104490.0,104480.0,0.16273]
[1762236040017,0.01616534,104490.0,104480.0,0.16273]
[1762236041530,0.01616534,104490.0,104480.0,0.16266]
[1762236042178,0.03328423,104490.0,104480.0,0.16266]
[1762236042640,0.06206881,104490.0,104480.0,0.16266]
[1762236043064,0.04494992,104490.0,104480.0,0.16266]
[1762236043485,0.04494992,104490.0,104480.0,0.18180241]
[1762236043730,0.01616534,104490.0,104480.0,0.16266]
[1762236044577,0.03328491,104490.0,104480.0,0.16266]
[1762236045962,3.67505491,104490.0,104480.0,0.007]
[1762236046179,3.51505491,104490.0,104480.0,0.007]
[1762236046819,3.51405491,104490.0,104480.0,0.002]
[1762236047241,3.0,104470.0,104460.0,0.02981921]
[1762236047454,3.0,104470.0,104460.0,0.12613921]
[1762236047681,3.40534,104470.0,104460.0,0.00023921]
[1762236047893,0.36367,104470.0,104460.0,0.00023921]
[1762236048103,0.34,104470.0,104460.0,0.13584921]
[1762236048526,0.36879259,104470.0,104460.0,0.13684921]
[1762236049677,0.36879259,104470.0,104460.0,0.15599529]
[1762236049877,0.36879259,104470.0,104460.0,0.13684921]
[1762236050736,0.34,104470.0,104460.0,0.15599529]
[1762236050941,0.34,104470.0,104460.0,0.13684921]
[1762236051157,0.02878704,104480.0,104460.0,0.13684921]
[1762236051395,0.0001399,104490.0,104470.0,0.0967]
[1762236051606,0.0001399,104490.0,104480.0,0.04447]
[1762236051854,0.04606104,104490.0,104480.0,0.04447]
[1762236052040,0.04606104,104490.0,104480.0,0.14079]
[1762236053921,0.04606104,104490.0,104480.0,0.14179]
[1762236055014,3.27450408,104510.0,104500.0,0.0731]
[1762236055443,3.30328758,104510.0,104500.0,0.16942]
[1762236056498,3.30728758,104510.0,104500.0,0.16942]
[1762236056917,3.30528758,104510.0,104500.0,0.16942]
[1762236057122,3.30328758,104510.0,104500.0,0.16942]
[1762236057351,3.30328758,104510.0,104500.0,0.17042]
[1762236057746,3.36833758,104510.0,104500.0,0.001]
[1762236057992,3.40064758,104510.0,104500.0,0.001]
[1762236059170,3.0,104500.0,104470.0,0.04965]
[1762236059376,3.0,104490.0,104470.0,0.1461099]
[1762236059789,3.0,104500.0,104480.0,0.15692]
[1762236060852,0.341,104500.0,104480.0,0.15692]
[1762236061068,3.0,104490.0,104480.0,0.15692]
[1762236061288,0.342,104500.0,104470.0,0.0497899]
[1762236061525,3.843,104500.0,104490.0,0.0606]
[1762236061738,3.34,104490.0,104480.0,0.09632]
[1762236061957,0.34,104490.0,104480.0,0.09632]
[1762236062169,0.34,104490.0,104480.0,0.15635]
[1762236062865,3.34,104490.0,104480.0,0.15635]
[1762236063094,0.34,104490.0,104480.0,0.15635]
[1762236063551,0.001,104500.0,104480.0,0.15635]
[1762236063783,8.52542554,104530.0,104490.0,0.18149485]
[1762236064015,7.77783036,104530.0,104520.0,0.05577999]
[1762236064242,7.67794036,104530.0,104520.0,0.04981]
[1762236064465,7.67817934,104530.0,104520.0,0.06894509]
[1762236064710,7.67817934,104530.0,104520.0,0.09071507]
[1762236064909,7.67817934,104530.0,104520.0,0.14675484]
[1762236065384,7.67832547,104530.0,104520.0,0.13675485]
[1762236065796,7.67832547,104530.0,104520.0,0.34724087]
[1762236066019,7.67832547,104530.0,104520.0,0.34810576]
[1762236066236,7.67832547,104530.0,104520.0,0.35110576]
[1762236066453,7.67932547,104530.0,104520.0,0.39228804]
[1762236066704,7.67932547,104530.0,104520.0,0.38928804]
[1762236066921,7.67932547,104530.0,104520.0,0.39128804]
[1762236067139,7.42871252,104530.0,104520.0,0.72428804]
[1762236067357,7.2115235,104530.0,104520.0,0.72428804]
[1762236067565,7.2115235,104530.0,104520.0,0.73128804]
[1762236067776,7.2125235,104530.0,104520.0,0.73128804]
[1762236068015,7.2125235,104530.0,104520.0,0.18993712]
[1762236068222,7.2125235,104530.0,104520.0,0.16375483]
[1762236068460,7.21220124,104530.0,104520.0,0.15375484]
[1762236068706,7.21220124,104530.0,104520.0,0.14375485]
[1762236069152,7.21120124,104530.0,104520.0,0.13675485]
[1762236069373,7.21120124,104530.0,104520.0,0.14375485]
[1762236069582,7.21220124,104530.0,104520.0,0.14975485]
[1762236069796,7.21220124,104530.0,104520.0,0.15175485]
[1762236070023,7.21220124,104530.0,104520.0,0.05181]
[1762236070024,7.55120124,104530.0,104520.0,0.05181]
[1762236070233,7.55120124,104530.0,104520.0,0.05378]
[1762236070441,7.55220124,104530.0,104520.0,0.05784]
[1762236070651,7.58097621,104530.0,104520.0,0.05784]
[1762236070858,7.55120124,104530.0,104520.0,0.05184]
[1762236072192,7.55220124,104530.0,104520.0,0.05584]
[1762236072426,7.55420124,104530.0,104520.0,0.05584]
[1762236072662,7.21320124,104530.0,104520.0,0.04984]
[1762236072871,7.21120124,104530.0,104520.0,0.05184]
[1762236073113,7.21220124,104530.0,104520.0,0.05358]
[1762236073331,7.21120124,104530.0,104520.0,0.05358]
[1762236073547,7.21120124,104530.0,104520.0,0.05158]
[1762236073764,7.21220124,104530.0,104520.0,0.05858]
[1762236073977,7.21220124,104530.0,104520.0,0.05758]
[1762236074187,7.21220124,104530.0,104520.0,0.06757999]
[1762236074409,7.21220124,104530.0,104520.0,0.27806601]
[1762236074629,7.21220124,104530.0,104520.0,0.26893091]
[1762236074841,7.21220124,104530.0,104520.0,0.07757998]
[1762236075051,7.21220124,104530.0,104520.0,0.27806601]
[1762236075265,7.21120124,104530.0,104520.0,0.26293091]
[1762236075471,7.21120124,104530.0,104520.0,0.31211319]
[1762236075472,7.21220124,104530.0,104520.0,0.31211319]
[1762236075688,7.21220124,104530.0,104520.0,0.30911319]
[1762236075901,7.21220124,104530.0,104520.0,0.31411319]
[1762236076110,7.21120124,104530.0,104520.0,0.30411319]
[1762236076315,7.21220124,104530.0,104520.0,0.65811319]
[1762236077092,6.75569619,104530.0,104520.0,0.65811319]
[1762236077293,6.73011227,104530.0,104520.0,0.75911319]
[1762236077492,6.5761637,104530.0,104520.0,0.76911318]
[1762236077695,6.35412077,104530.0,104520.0,0.76911318]
[1762236077900,6.35412077,104530.0,104520.0,0.75911319]
[1762236078173,6.35412077,104530.0,104520.0,0.11676227]
[1762236078384,6.35412077,104530.0,104520.0,0.12676226]
[1762236078606,6.35412077,104530.0,104520.0,0.31811319]
[1762236079041,6.35412077,104530.0,104520.0,0.12676226]
[1762236079264,6.35412077,104530.0,104520.0,0.07058]
[1762236079471,6.35387077,104530.0,104520.0,0.301066]
[1762236079683,6.35387077,104530.0,104520.0,0.09057998]
[1762236079878,6.35387077,104530.0,104520.0,0.10971507]
[1762236080330,6.35387077,104530.0,104520.0,0.07058]
[1762236080513,6.69387077,104530.0,104520.0,0.06478]
[1762236080726,6.69387077,104530.0,104520.0,0.06704]
[1762236080953,6.5165801,104530.0,104520.0,0.06704]
[1762236081410,6.5165801,104530.0,104520.0,0.06204]
[1762236081633,6.5155801,104530.0,104520.0,0.04804]
[1762236082102,6.5155801,104530.0,104520.0,0.05004]
[1762236082578,6.5165801,104530.0,104520.0,0.04778]
[1762236083477,9.6752201,104530.0,104520.0,0.002]
[1762236083927,10.11140238,104530.0,104520.0,0.002]
[1762236084171,9.91140238,104530.0,104520.0,0.002]
[1762236084391,9.91640738,104530.0,104520.0,0.002]
[1762236084837,9.71640738,104530.0,104520.0,0.002]
[1762236085057,0.34,104520.0,104500.0,0.1]
[1762236085274,0.42517485,104520.0,104500.0,0.14774]
[1762236085944,0.50313311,104520.0,104500.0,0.1]
[1762236086164,3.0,104510.0,104500.0,0.1]
[1762236086838,0.1011875,104520.0,104500.0,0.1845]
[1762236087055,0.1011875,104520.0,104500.0,0.14774]
[1762236087495,0.1011875,104520.0,104500.0,0.18634]
[1762236087718,0.1011875,104520.0,104500.0,0.14774]
[1762236087931,0.04857,104510.0,104500.0,0.1]
[1762236088852,0.03857,104510.0,104500.0,0.103]
[1762236089072,0.37857,104510.0,104500.0,0.103]
[1762236089574,0.37857,104510.0,104500.0,0.101]
[1762236089749,0.18341485,104520.0,104500.0,0.15683]
[1762236089750,0.08517485,104520.0,104500.0,0.15683]
[1762236089962,0.34,104510.0,104500.0,0.15883]
[1762236090184,0.3865,104510.0,104500.0,0.103]
[1762236090409,0.54353,104510.0,104500.0,0.103]
[1762236090630,0.54353,104510.0,104500.0,0.101]
[1762236090873,0.44801,104510.0,104500.0,0.101]
[1762236091099,0.3865,104510.0,104500.0,0.101]
[1762236091754,0.08517485,104520.0,104500.0,0.19537]
[1762236091987,0.08517485,104520.0,104500.0,0.19737]
[1762236092204,0.08517485,104520.0,104500.0,0.13989]
[1762236092409,0.08517485,104520.0,104500.0,0.13789]
[1762236092410,0.10234998,104520.0,104500.0,0.13789]
[1762236092623,0.34,104510.0,104500.0,0.101]
[1762236092830,0.34,104510.0,104500.0,0.105]
[1762236093239,0.34,104510.0,104500.0,0.101]
[1762236093446,0.34,104510.0,104500.0,0.13814]
[1762236093653,0.34,104510.0,104500.0,0.19938]
[1762236094091,0.08517485,104520.0,104500.0,0.19938]
[1762236094353,0.0850682,104520.0,104510.0,0.00067]
[1762236094802,0.4250682,104520.0,104510.0,0.05841]
[1762236095033,0.08517485,104520.0,104510.0,0.05841]
[1762236095244,0.08517485,104520.0,104510.0,0.00067]
[1762236095447,0.34,104520.0,104510.0,0.00067]
[1762236095662,6.1755801,104530.0,104510.0,0.14358485]
[1762236095922,6.1755801,104530.0,104520.0,0.03627]
[1762236096153,6.1755801,104530.0,104500.0,0.101]
[1762236096370,0.34,104520.0,104510.0,0.06174]
[1762236096597,6.1755801,104530.0,104520.0,0.03693]
[1762236097045,6.1755801,104530.0,104520.0,0.10042]
[1762236097046,6.1765801,104530.0,104520.0,0.10042]
[1762236097552,6.1765801,104530.0,104520.0,0.11041999]
[1762236097780,6.1765801,104530.0,104520.0,0.30177092]
[1762236098245,6.1765801,104530.0,104520.0,0.29577092]
[1762236098246,6.1755801,104530.0,104520.0,0.29577092]
[1762236098473,6.1755801,104530.0,104520.0,0.09442]
[1762236098697,6.1755801,104530.0,104520.0,0.10142]
[1762236098920,6.1755801,104530.0,104520.0,0.11755509]
[1762236099163,6.1755801,104530.0,104520.0,0.11441998]
[1762236099379,6.1765801,104530.0,104520.0,0.11841999]
[1762236099589,6.1765801,104530.0,104520.0,0.10842]
[1762236100051,6.1755801,104530.0,104520.0,0.09742]
[1762236100285,6.1765801,104530.0,104520.0,0.10642]
[1762236100507,6.1765801,104530.0,104520.0,0.10342]
[1762236100727,6.1765801,104530.0,104520.0,0.10542]
[1762236101161,6.1765801,104530.0,104520.0,0.10342]
[1762236101377,6.1765801,104530.0,104520.0,0.10642]
[1762236101809,6.1765801,104530.0,104520.0,0.12555509]
[1762236102021,6.1765801,104530.0,104520.0,0.10642]
[1762236102908,6.1765801,104530.0,104520.0,0.31690602]
[1762236103128,6.1765801,104530.0,104520.0,0.11641999]
[1762236103886,6.1765801,104530.0,104520.0,0.10642]
[1762236104137,6.1765801,104530.0,104520.0,0.13555508]
[1762236104354,6.1765801,104530.0,104520.0,0.30777092]
[1762236104588,6.1765801,104530.0,104520.0,0.11641999]
[1762236105037,5.97420621,104530.0,104520.0,0.10642]
[1762236106766,5.97420621,104530.0,104520.0,0.11641999]
[1762236107433,5.97420621,104530.0,104520.0,0.30777092]
[1762236107883,5.97420621,104530.0,104520.0,0.11641999]
[1762236108530,5.97420621,104530.0,104520.0,0.31777091]
[1762236109003,5.97420621,104530.0,104520.0,0.12641998]
[1762236109226,5.97420621,104530.0,104520.0,0.10642]
[1762236111042,5.97420621,104530.0,104520.0,0.12555509]
[1762236111310,5.97420621,104530.0,104520.0,0.10642]
[1762236111311,5.96882017,104530.0,104520.0,0.10642]
[1762236112909,5.96882017,104530.0,104520.0,0.11641999]
[1762236113128,5.96882017,104530.0,104520.0,0.12641998]
[1762236113352,5.96882017,104530.0,104520.0,0.31777091]
[1762236114270,5.96882017,104530.0,104520.0,0.12641998]
[1762236115180,5.96882017,104530.0,104520.0,0.31777091]
[1762236115421,5.76024958,104530.0,104520.0,3.6677709]
[1762236115681,5.76024958,104530.0,104520.0,3.70395318]
[1762236115903,5.76024958,104530.0,104520.0,0.64777092]
[1762236116119,5.76024958,104530.0,104520.0,0.6677709]
[1762236116566,5.75924958,104530.0,104520.0,0.6587709]
[1762236116777,5.75924958,104530.0,104520.0,0.63577092]
[1762236116992,5.75924958,104530.0,104520.0,0.65177091]
[1762236117198,5.75924958,104530.0,104520.0,0.6657709]
[1762236117414,5.75924958,104530.0,104520.0,0.6597709]
[1762236117627,5.76024958,104530.0,104520.0,0.6677709]
[1762236117879,5.76024958,104530.0,104520.0,0.65577092]
[1762236118304,5.76024958,104530.0,104520.0,0.6757709]
[1762236118513,5.76024958,104530.0,104520.0,0.65577092]
[1762236118732,5.76024958,104530.0,104520.0,0.6757709]
[1762236119012,5.76024958,104530.0,104520.0,0.66577091]
[1762236119227,5.76024958,104530.0,104520.0,0.65577092]
[1762236119442,5.76024958,104530.0,104520.0,0.6757709]
[1762236119667,5.76024958,104530.0,104520.0,0.66577091]
[1762236119870,5.76024958,104530.0,104520.0,0.6757709]
[1762236120088,5.76024958,104530.0,104520.0,3.71195318]
[1762236121685,5.76024958,104530.0,104520.0,3.70195319]
[1762236121908,5.76024958,104530.0,104520.0,0.6919532]
[1762236122121,5.76024958,104530.0,104520.0,0.6757709]
[1762236122331,5.76024958,104530.0,104520.0,0.65577092]
[1762236122540,5.76024958,104530.0,104520.0,0.66577091]
[1762236122815,5.76024958,104530.0,104520.0,0.46441999]
[1762236122996,5.76024958,104530.0,104520.0,0.13441998]
[1762236123425,5.76024958,104530.0,104520.0,0.344906]
[1762236123628,5.76024958,104530.0,104520.0,0.32577091]
[1762236124069,5.75924958,104530.0,104520.0,0.31377091]
[1762236124286,5.75924958,104530.0,104520.0,0.30577091]
[1762236124500,5.75924958,104530.0,104520.0,0.31977091]
[1762236124741,5.75924958,104530.0,104520.0,0.65977091]
[1762236124956,5.75924958,104530.0,104520.0,3.69595319]
[1762236124957,5.70924958,104530.0,104520.0,3.69595319]
[1762236125164,5.70924958,104530.0,104520.0,0.69595319]
[1762236125388,5.70924958,104530.0,104520.0,0.70595318]
[1762236125605,5.70924958,104530.0,104520.0,3.70595318]
[1762236126241,5.70924958,104530.0,104520.0,3.69195318]
[1762236126463,5.70924958,104530.0,104520.0,3.80595318]
[1762236126464,5.20579372,104530.0,104520.0,3.80595318]
[1762236126873,1.30405036,104530.0,104520.0,3.84305642]
[1762236127118,1.25030614,104530.0,104520.0,3.83005642]
[1762236127352,0.98513739,104530.0,104520.0,3.81595318]
[1762236127565,0.53835317,104530.0,104520.0,3.86971684]
[1762236127779,0.33858544,104530.0,104520.0,3.87871684]
[1762236128017,0.05704528,104530.0,104520.0,3.87871684]
[1762236128234,0.025,104560.0,104550.0,3.6784783]
[1762236128449,0.02509318,104560.0,104550.0,3.74834828]
[1762236128668,0.0254,104580.0,104570.0,0.69844169]
[1762236128890,0.02588693,104580.0,104570.0,0.69844169]
[1762236129106,0.0254,104590.0,104580.0,3.6984234]
[1762236129384,0.02549312,104590.0,104580.0,3.7876134]
[1762236130293,1e-08,104590.0,104580.0,3.7876134]
[1762236130523,1e-08,104590.0,104580.0,3.79990734]
[1762236130976,1e-08,104590.0,104580.0,3.81190734]
[1762236131203,1e-08,104590.0,104580.0,3.81790734]
[1762236132052,0.0004,104610.0,104600.0,0.19120458]
[1762236132284,0.0004,104610.0,104600.0,3.63137455]
[1762236132510,0.0004,104610.0,104600.0,3.68124455]
[1762236132738,0.0004,104610.0,104600.0,0.69742685]
[1762236132963,0.0004,104610.0,104600.0,0.69620685]
[1762236133200,0.0004,104610.0,104600.0,0.71620683]
[1762236133423,0.0004,104610.0,104600.0,3.72120683]
[1762236133867,0.0004,104610.0,104600.0,3.72520683]
[1762236134082,0.0004,104610.0,104600.0,3.73020683]
[1762236134294,0.0004,104610.0,104600.0,3.72020684]
[1762236134588,0.00231027,104610.0,104600.0,3.72020684]
[1762236134826,0.00231027,104610.0,104600.0,3.73020683]
[1762236135298,0.00231027,104610.0,104600.0,3.72120683]
[1762236135528,0.0004,104700.0,104620.0,0.561168]
[1762236135744,0.02514598,104630.0,104620.0,3.595628]
[1762236135962,0.02514598,104630.0,104620.0,3.645498]
[1762236136186,0.02514598,104630.0,104620.0,3.68168028]
[1762236136848,1e-08,104630.0,104620.0,3.68168028]
[1762236137128,0.0004,104700.0,104670.0,0.20061391]
[1762236137356,0.01803852,104700.0,104690.0,0.07009]
[1762236137575,0.01803852,104700.0,104690.0,0.11996]
[1762236138224,0.01803852,104700.0,104690.0,0.46995999]
[1762236138486,0.01803852,104700.0,104690.0,0.47995998]
[1762236138716,0.01803852,104700.0,104690.0,0.67100019]
[1762236138717,0.00088679,104700.0,104690.0,0.67100019]
[1762236138949,0.08517485,104760.0,104710.0,0.20055008]
[1762236138950,3.08517485,104760.0,104710.0,0.20055008]
[1762236139231,0.10246474,104760.0,104750.0,0.01349]
[1762236139457,0.01728989,104760.0,104750.0,0.05191241]
[1762236139914,0.01728989,104760.0,104750.0,0.09034241]
[1762236140136,0.08565485,104790.0,104750.0,0.09034241]
[1762236140358,0.08565485,104790.0,104780.0,0.02114]
[1762236140584,0.08565485,104790.0,104780.0,0.04228]
[1762236140807,0.08565485,104790.0,104780.0,0.03228]
[1762236141284,0.08565485,104790.0,104780.0,0.23315611]
[1762236141285,0.00048,104790.0,104780.0,0.23315611]
[1762236141506,0.00048,104790.0,104780.0,0.04227999]
[1762236141727,0.00048,104790.0,104780.0,0.25224372]
[1762236141942,0.085278,104830.0,104790.0,0.55039942]
[1762236142165,0.0857644,104830.0,104820.0,0.01066]
[1762236142615,0.0857644,104830.0,104810.0,0.19714091]
[1762236142619,0.08566125,104830.0,104810.0,0.00631999]
[1762236142847,0.0004864,104830.0,104820.0,0.05250226]
[1762236143073,0.0004864,104830.0,104820.0,0.53080328]
[1762236143312,0.0004864,104830.0,104820.0,0.58330554]
[1762236143535,0.0004864,104830.0,104820.0,0.53712327]
[1762236143776,0.0004864,104830.0,104820.0,0.20912326]
[1762236144020,0.0004864,104830.0,104810.0,0.00631999]
[1762236144264,0.0004864,104830.0,104820.0,0.005]
[1762236145602,0.0004864,104830.0,104810.0,0.01908214]
[1762236145840,0.0004864,104830.0,104820.0,0.004]
[1762236146070,0.0004864,104830.0,104810.0,0.01908214]
[1762236146329,0.0004864,104830.0,104820.0,0.34999999]
[1762236146565,0.0004864,104830.0,104820.0,0.34631999]
[1762236146802,0.0004864,104830.0,104800.0,0.00999999]
[1762236147037,0.0004864,104830.0,104810.0,0.19714059]
[1762236147272,0.0004864,104830.0,104820.0,0.002]
[1762236147923,0.0041664,104830.0,104820.0,0.002]
[1762236148364,0.04034868,104830.0,104820.0,0.002]
[1762236148594,0.04034868,104830.0,104780.0,0.01908761]
[1762236148857,0.00368,104810.0,104760.0,0.00631999]
[1762236149083,0.00368,104800.0,104750.0,0.0092524]
[1762236149301,0.00368,104790.0,104750.0,0.03202547]
[1762236149957,0.00368,104790.0,104750.0,0.02202548]
[1762236150394,0.00368,104790.0,104760.0,0.002]
[1762236150398,0.00368,104790.0,104750.0,0.01576139]
[1762236150678,0.00368,104800.0,104760.0,0.01909125]
[1762236150896,0.0041664,104800.0,104770.0,0.01908943]
[1762236151154,0.00368,104790.0,104750.0,0.34293241]
[1762236151379,0.08885485,104790.0,104750.0,0.00293241]
[1762236151626,0.00368,104780.0,104750.0,0.00293241]
[1762236151852,0.00368,104780.0,104750.0,0.00693241]
[1762236151853,0.34368,104780.0,104750.0,0.00693241]
[1762236152075,0.34368,104780.0,104750.0,0.00293241]
[1762236152323,0.34368,104780.0,104750.0,0.00393241]
[1762236152558,0.00368,104770.0,104750.0,0.00293241]
[1762236152803,0.08885485,104770.0,104750.0,0.00293241]
[1762236153035,0.00357526,104760.0,104750.0,0.00393241]
[1762236155086,0.00357526,104760.0,104750.0,0.00293241]
[1762236155561,0.00357526,104760.0,104750.0,0.00493241]
[1762236155788,0.00357526,104760.0,104750.0,0.00293241]
[1762236156001,0.00357526,104760.0,104750.0,0.02202548]
[1762236156220,0.00357526,104760.0,104750.0,0.02502548]
[1762236156447,0.00357526,104760.0,104750.0,0.21595626]
[1762236156661,0.00053629,104760.0,104750.0,0.19686319]
[1762236156910,0.00108829,104770.0,104750.0,0.00593241]
[1762236157130,0.00014583,104770.0,104760.0,0.19091247]
[1762236157561,0.00014583,104770.0,104760.0,0.20091246]
[1762236158028,0.00014583,104770.0,104760.0,0.54091246]
[1762236158255,0.00014583,104770.0,104760.0,0.55091245]
[1762236158497,0.00014583,104770.0,104760.0,3.58709473]
[1762236158933,0.0004,104840.0,104810.0,0.19081691]
[1762236159153,0.0008863,104840.0,104820.0,0.01908032]
[1762236159600,0.0008863,104840.0,104810.0,0.19081977]
[1762236159601,0.0008863,104840.0,104790.0,0.35999998]
[1762236159818,0.08517485,104830.0,104780.0,0.21038929]
[1762236160037,0.08517485,104830.0,104790.0,0.21948656]
[1762236160257,0.08517485,104830.0,104770.0,0.30585161]
[1762236160471,0.0008863,104840.0,104780.0,0.01954379]
[1762236160699,0.0008863,104840.0,104790.0,0.01908579]
[1762236161123,0.0008863,104840.0,104780.0,0.21041777]
[1762236161354,0.0008863,104840.0,104820.0,0.002]
[1762236161355,0.08517485,104830.0,104820.0,0.002]
[1762236161581,0.28517485,104830.0,104820.0,0.002]
[1762236161823,0.34,104820.0,104750.0,0.21340826]
[1762236162092,0.08517485,104800.0,104750.0,0.22340825]
[1762236162313,0.08517485,104800.0,104750.0,0.56340825]
[1762236162537,0.08517485,104800.0,104760.0,0.01909125]
[1762236162750,0.00023815,104770.0,104760.0,0.01909125]
[1762236163418,0.0003311,104770.0,104760.0,0.01909125]
[1762236163656,0.0003311,104770.0,104750.0,0.34293241]
[1762236164301,0.0003311,104770.0,104750.0,0.00393241]
[1762236164512,0.0003311,104770.0,104750.0,0.00293241]
[1762236164955,0.0003311,104770.0,104750.0,0.00593241]
[1762236165173,0.0003311,104770.0,104750.0,0.02202548]
[1762236165614,0.0003311,104770.0,104750.0,0.02502548]
[1762236165877,0.0003311,104770.0,104750.0,0.00593241]
[1762236166091,0.0003311,104770.0,104750.0,0.02502548]
[1762236167000,0.0003311,104770.0,104750.0,0.00593241]
[1762236167228,0.08517485,104760.0,104750.0,0.00593241]
[1762236168369,0.08517485,104760.0,104750.0,0.00293241]
[1762236168581,0.09728624,104760.0,104750.0,0.00293241]
[1762236168837,0.09728624,104760.0,104750.0,0.00393241]
[1762236169108,0.09728624,104760.0,104750.0,0.00293241]
[1762236170175,0.34,104750.0,104720.0,0.00135482]
[1762236170401,0.08517485,104740.0,104720.0,0.00135482]
[1762236170625,0.34,104750.0,104720.0,0.00135482]
[1762236171092,0.0003311,104770.0,104730.0,0.20051551]
[1762236171308,0.0003311,104770.0,104740.0,0.02864235]
[1762236171529,0.0003311,104770.0,104750.0,0.19093025]
[1762236171756,0.0003311,104770.0,104760.0,0.01909125]
[1762236172427,0.0003311,104770.0,104730.0,0.40953929]
[1762236172652,0.0003311,104770.0,104740.0,0.001]
[1762236172886,0.0003311,104770.0,104740.0,0.0200949]
[1762236173106,0.08550595,104770.0,104740.0,0.0200949]
[1762236173347,0.30553216,104780.0,104740.0,0.0200949]
[1762236173594,0.08517485,104770.0,104740.0,0.02024073]
[1762236173818,0.08517485,104770.0,104740.0,0.01924073]
[1762236174269,0.08517485,104770.0,104760.0,0.005]
[1762236174480,0.08517485,104770.0,104740.0,0.00014583]
[1762236178873,0.08517485,104750.0,104740.0,0.00014583]
[1762236180553,0.47443485,104750.0,104740.0,0.00014583]
[1762236180757,0.67085713,104750.0,104740.0,0.00014583]
[1762236181010,3.67085713,104750.0,104740.0,0.00114583]
[1762236181209,3.67085713,104750.0,104720.0,0.00135482]
[1762236181210,0.03618228,104730.0,104720.0,0.00135482]
[1762236181499,0.03618228,104730.0,104720.0,0.00144777]
[1762236181500,3.93938228,104730.0,104720.0,0.00144777]
[1762236181705,3.53642228,104730.0,104720.0,0.00144777]
[1762236182339,3.55140701,104730.0,104720.0,0.00144777]
[1762236182764,0.35498473,104730.0,104720.0,0.00144777]
[1762236183182,0.01498473,104730.0,104720.0,0.00144777]
[1762236183389,0.08517485,104740.0,104730.0,0.13284]
[1762236183607,0.10016376,104740.0,104730.0,0.13284]
[1762236183828,0.35498891,104740.0,104730.0,0.13284]
[1762236184034,0.08517485,104770.0,104730.0,0.13284]
[1762236184035,0.08517485,104770.0,104730.0,0.13184]
[1762236184243,0.01497835,104760.0,104740.0,0.0190949]
[1762236184451,0.01497835,104760.0,104730.0,0.03462]
[1762236184663,0.42517485,104770.0,104750.0,0.06316]
[1762236184876,0.42517485,104770.0,104760.0,0.06316]
[1762236185091,0.08517485,104770.0,104760.0,0.06316]
[1762236185348,0.001,104770.0,104760.0,0.06316]
[1762236186005,0.001,104770.0,104760.0,0.27316381]
[1762236186225,0.001,104770.0,104760.0,0.06316]
[1762236186420,0.08517485,104790.0,104760.0,0.06316]
[1762236186650,3.08517485,104770.0,104740.0,0.09822]
[1762236186861,0.08517485,104750.0,104740.0,0.09831295]
[1762236187068,0.08517485,104750.0,104740.0,9.295e-05]
[1762236187702,0.72559651,104750.0,104740.0,9.295e-05]
[1762236188140,0.72559651,104750.0,104740.0,0.00209295]
[1762236188141,3.78879651,104750.0,104740.0,0.00209295]
[1762236188353,0.52559651,104750.0,104740.0,9.295e-05]
[1762236188583,0.58879651,104750.0,104740.0,9.295e-05]
[1762236188785,3.58879651,104750.0,104740.0,9.295e-05]
[1762236189216,3.78879651,104750.0,104740.0,9.295e-05]
[1762236189843,3.78979651,104750.0,104740.0,9.295e-05]
[1762236190043,3.78879651,104750.0,104740.0,9.295e-05]
[1762236190456,3.78979651,104750.0,104740.0,9.295e-05]
[1762236190664,3.78879651,104750.0,104740.0,9.295e-05]
[1762236191080,3.79079651,104750.0,104740.0,9.295e-05]
[1762236191284,3.87484651,104750.0,104740.0,9.295e-05]
[1762236191504,0.87484651,104750.0,104740.0,9.295e-05]
[1762236191727,0.01697938,104750.0,104740.0,0.16195295]
[1762236191944,0.002,104750.0,104740.0,0.16195295]
[1762236192164,0.08517485,104790.0,104740.0,0.15026785]
[1762236192416,0.08517485,104790.0,104750.0,0.09822]
[1762236192417,0.08517485,104770.0,104750.0,0.09822]
[1762236193074,0.08517485,104770.0,104740.0,0.03371295]
[1762236193075,0.08517485,104750.0,104740.0,0.03371295]